[Event "*** SCC Grand Prix: Titled Tuesday Blitz"]
[Site "Chess.com"]
[Date "2020.10.13"]
[Round "3"]
[White "Trovita84"]
[Black "wanyaland"]
[Result "0-1"]
[WhiteElo "2030"]
[BlackElo "2287"]
[TimeControl "180+1"]
[EndTime "10:26:33 PDT"]
[Termination "wanyaland won by resignation"]

1. e4 {[%clk 0:03:00.9]} 1... c5 {[%clk 0:02:55.3]} 2. Nc3 {[%clk 0:03:00.4]}
2... d6 {[%clk 0:02:52.3]} 3. g3 {[%clk 0:02:45.9]} 3... Nc6 {[%clk 0:02:42.6]}
4. Bg2 {[%clk 0:02:44.7]} 4... g6 {[%clk 0:02:41.7]} 5. f4 {[%clk 0:02:43.9]}
5... Bg7 {[%clk 0:02:40.6]} 6. Nf3 {[%clk 0:02:44.2]} 6... Nf6 {[%clk 0:02:40]}
7. O-O {[%clk 0:02:44.1]} 7... O-O {[%clk 0:02:38.9]} 8. h3 {[%clk 0:02:39.7]}
8... Rb8 {[%clk 0:02:36.5]} 9. a4 {[%clk 0:02:39.5]} 9... b6 {[%clk 0:02:35.3]}
10. g4 {[%clk 0:02:37.1]} 10... Nd4 {[%clk 0:02:32.2]} 11. d3 {[%clk 0:02:37]}
11... Ba6 {[%clk 0:02:22.4]} 12. Be3 {[%clk 0:02:25]} 12... Nd7 {[%clk
0:02:20.5]} 13. f5 {[%clk 0:02:20.3]} 13... Rc8 {[%clk 0:02:16]} 14. fxg6 {[%clk
0:02:14.6]} 14... hxg6 {[%clk 0:02:13.5]} 15. h4 {[%clk 0:02:13.1]} 15... Ne5
{[%clk 0:02:11]} 16. Nxe5 {[%clk 0:02:10]} 16... dxe5 {[%clk 0:02:09.4]} 17. h5
{[%clk 0:02:09.1]} 17... e6 {[%clk 0:01:58.4]} 18. hxg6 {[%clk 0:02:04.8]} 18...
fxg6 {[%clk 0:01:58]} 19. Qd2 {[%clk 0:01:59.7]} 19... Qh4 {[%clk 0:01:55.8]}
20. g5 {[%clk 0:01:36.7]} 20... c4 {[%clk 0:01:49.2]} 21. Nb5 {[%clk 0:01:29.9]}
21... Bxb5 {[%clk 0:01:45.8]} 22. axb5 {[%clk 0:01:29.4]} 22... cxd3 {[%clk
0:01:37]} 23. cxd3 {[%clk 0:01:08.7]} 23... Rxf1+ {[%clk 0:01:32.2]} 24. Rxf1
{[%clk 0:01:07.4]} 24... Rc2 {[%clk 0:01:29.9]} 25. Qd1 {[%clk 0:01:00]} 25...
Ne2+ {[%clk 0:01:27.3]} 0-1

[Event "*** SCC Grand Prix: Titled Tuesday Blitz"]
[Site "Chess.com"]
[Date "2020.10.13"]
[Round "3"]
[White "GigaQuparadze"]
[Black "KaterynaLagno"]
[Result "1-0"]
[WhiteElo "2971"]
[BlackElo "2717"]
[TimeControl "180+1"]
[EndTime "10:26:41 PDT"]
[Termination "GigaQuparadze won by checkmate"]

1. e4 {[%clk 0:03:00.9]} 1... e5 {[%clk 0:02:59.5]} 2. Nf3 {[%clk 0:03:00.3]}
2... Nc6 {[%clk 0:02:59.8]} 3. Bb5 {[%clk 0:03:00.1]} 3... g6 {[%clk 0:02:59.4]}
4. c3 {[%clk 0:02:59.1]} 4... Bg7 {[%clk 0:02:58.2]} 5. d4 {[%clk 0:02:58.9]}
5... exd4 {[%clk 0:02:58.3]} 6. cxd4 {[%clk 0:02:59.8]} 6... a6 {[%clk
0:02:58.8]} 7. Ba4 {[%clk 0:02:56]} 7... b5 {[%clk 0:02:57.7]} 8. Bb3 {[%clk
0:02:53.9]} 8... Nge7 {[%clk 0:02:55.9]} 9. d5 {[%clk 0:02:44]} 9... Na5 {[%clk
0:02:54.9]} 10. Bd2 {[%clk 0:02:39.7]} 10... Nxb3 {[%clk 0:02:34.1]} 11. Qxb3
{[%clk 0:02:39]} 11... c5 {[%clk 0:02:23.6]} 12. Bc3 {[%clk 0:02:32.9]} 12... f6
{[%clk 0:02:21.9]} 13. O-O {[%clk 0:02:27]} 13... d6 {[%clk 0:02:21.3]} 14. a4
{[%clk 0:02:20.3]} 14... b4 {[%clk 0:02:04.5]} 15. Bd2 {[%clk 0:02:15.7]} 15...
a5 {[%clk 0:02:03.2]} 16. Bf4 {[%clk 0:02:13.7]} 16... g5 {[%clk 0:02:00.6]} 17.
Bg3 {[%clk 0:02:12]} 17... c4 {[%clk 0:01:52.3]} 18. Qe3 {[%clk 0:02:04.7]}
18... O-O {[%clk 0:01:40.2]} 19. Nbd2 {[%clk 0:02:01.1]} 19... Ba6 {[%clk
0:01:39.8]} 20. Nd4 {[%clk 0:01:59]} 20... Qd7 {[%clk 0:01:13.6]} 21. Ne6 {[%clk
0:01:41.8]} 21... Ng6 {[%clk 0:01:12.7]} 22. Rfc1 {[%clk 0:01:24.5]} 22... Rfc8
{[%clk 0:01:10.8]} 23. Nf3 {[%clk 0:01:24.6]} 23... Bh8 {[%clk 0:01:07.4]} 24.
Nfd4 {[%clk 0:01:24.5]} 24... Ne5 {[%clk 0:00:57.5]} 25. Nf5 {[%clk 0:01:23.3]}
25... Re8 {[%clk 0:00:47.1]} 26. Nh6# {[%clk 0:01:22.3]} 1-0

[Event "*** SCC Grand Prix: Titled Tuesday Blitz"]
[Site "Chess.com"]
[Date "2020.10.13"]
[Round "3"]
[White "kidagent"]
[Black "Sesleria"]
[Result "1-0"]
[WhiteElo "2282"]
[BlackElo "2030"]
[TimeControl "180+1"]
[EndTime "10:26:41 PDT"]
[Termination "kidagent won by resignation"]

1. e4 {[%clk 0:03:00.9]} 1... e5 {[%clk 0:02:59.2]} 2. Nf3 {[%clk 0:03:00.8]}
2... Nc6 {[%clk 0:02:59.5]} 3. Bb5 {[%clk 0:03:01.2]} 3... a6 {[%clk 0:02:59.5]}
4. Ba4 {[%clk 0:03:01]} 4... Nf6 {[%clk 0:02:59.7]} 5. O-O {[%clk 0:03:00.9]}
5... Be7 {[%clk 0:02:59.2]} 6. Re1 {[%clk 0:03:01.5]} 6... b5 {[%clk 0:02:58.3]}
7. Bb3 {[%clk 0:03:01.9]} 7... d6 {[%clk 0:02:58.7]} 8. a4 {[%clk 0:03:02.2]}
8... Rb8 {[%clk 0:02:52.5]} 9. axb5 {[%clk 0:03:01.9]} 9... axb5 {[%clk
0:02:52.8]} 10. c3 {[%clk 0:03:02.5]} 10... O-O {[%clk 0:02:50.5]} 11. d3 {[%clk
0:03:02]} 11... h6 {[%clk 0:02:44.4]} 12. h3 {[%clk 0:03:02.1]} 12... Re8 {[%clk
0:02:39.7]} 13. Nbd2 {[%clk 0:03:02]} 13... g6 {[%clk 0:02:39.5]} 14. Nf1 {[%clk
0:03:01.1]} 14... Bf8 {[%clk 0:02:39.8]} 15. Be3 {[%clk 0:02:58.5]} 15... Bg7
{[%clk 0:02:39.3]} 16. Qd2 {[%clk 0:02:57.4]} 16... h5 {[%clk 0:02:37.8]} 17.
Bg5 {[%clk 0:02:56.3]} 17... Be6 {[%clk 0:02:30.1]} 18. Bxe6 {[%clk 0:02:53.3]}
18... Rxe6 {[%clk 0:02:29.7]} 19. Ne3 {[%clk 0:02:52.5]} 19... Qc8 {[%clk
0:02:13.1]} 20. Nd5 {[%clk 0:02:51.4]} 20... Nh7 {[%clk 0:01:51.1]} 21. Be3
{[%clk 0:02:47.2]} 21... Ne7 {[%clk 0:01:47.3]} 22. d4 {[%clk 0:02:41.5]} 22...
c6 {[%clk 0:01:42.7]} 23. Nxe7+ {[%clk 0:02:34.9]} 23... Rxe7 {[%clk 0:01:43.6]}
24. dxe5 {[%clk 0:02:34.7]} 24... dxe5 {[%clk 0:01:37.4]} 25. Red1 {[%clk
0:02:34.1]} 25... Nf6 {[%clk 0:01:25.9]} 26. Ng5 {[%clk 0:02:32.7]} 26... Rd7
{[%clk 0:01:20.6]} 27. Qc2 {[%clk 0:02:28.9]} 27... Qe8 {[%clk 0:01:14.2]} 28.
Nf3 {[%clk 0:02:25.8]} 28... Rbd8 {[%clk 0:01:09.2]} 29. Rxd7 {[%clk 0:02:25.3]}
29... Rxd7 {[%clk 0:01:08]} 30. Nd2 {[%clk 0:02:25.3]} 30... Qd8 {[%clk
0:00:40.3]} 31. f3 {[%clk 0:02:23.4]} 31... Rd3 {[%clk 0:00:36.7]} 32. Nf1
{[%clk 0:02:22.1]} 32... h4 {[%clk 0:00:35.4]} 33. Bg5 {[%clk 0:02:11.9]} 33...
Bf8 {[%clk 0:00:26.7]} 34. Bxh4 {[%clk 0:02:10.6]} 34... Bc5+ {[%clk 0:00:24.3]}
35. Kh1 {[%clk 0:02:10.1]} 35... Qd6 {[%clk 0:00:21.9]} 36. Bxf6 {[%clk
0:02:08.5]} 1-0

[Event "*** SCC Grand Prix: Titled Tuesday Blitz"]
[Site "Chess.com"]
[Date "2020.10.13"]
[Round "3"]
[White "elohunter1999"]
[Black "Zkid"]
[Result "0-1"]
[WhiteElo "2605"]
[BlackElo "2814"]
[TimeControl "180+1"]
[EndTime "10:26:43 PDT"]
[Termination "Zkid won by checkmate"]

1. e4 {[%clk 0:03:00.9]} 1... e6 {[%clk 0:02:59.5]} 2. d4 {[%clk 0:03:00.8]}
2... d5 {[%clk 0:02:59.7]} 3. Nc3 {[%clk 0:03:01.4]} 3... Bb4 {[%clk 0:02:57.9]}
4. e5 {[%clk 0:03:01.6]} 4... c5 {[%clk 0:02:58.1]} 5. a3 {[%clk 0:03:01.7]}
5... Bxc3+ {[%clk 0:02:58.5]} 6. bxc3 {[%clk 0:03:02.6]} 6... Qa5 {[%clk
0:02:58.8]} 7. Bd2 {[%clk 0:03:01.9]} 7... Qa4 {[%clk 0:02:59.2]} 8. Qb1 {[%clk
0:03:01.9]} 8... c4 {[%clk 0:02:58.8]} 9. h4 {[%clk 0:02:57.9]} 9... Nc6 {[%clk
0:02:58.3]} 10. h5 {[%clk 0:02:56.8]} 10... h6 {[%clk 0:02:58.6]} 11. Ne2 {[%clk
0:02:53.8]} 11... Bd7 {[%clk 0:02:55.3]} 12. g3 {[%clk 0:02:46.8]} 12... Nge7
{[%clk 0:02:54.6]} 13. Bh3 {[%clk 0:02:44.9]} 13... O-O-O {[%clk 0:02:52.9]} 14.
O-O {[%clk 0:02:41.3]} 14... f6 {[%clk 0:02:51.7]} 15. f4 {[%clk 0:02:13]} 15...
f5 {[%clk 0:02:49.2]} 16. Kh2 {[%clk 0:02:01.1]} 16... g6 {[%clk 0:02:47.4]} 17.
g4 {[%clk 0:02:00.7]} 17... gxh5 {[%clk 0:02:45.4]} 18. gxf5 {[%clk 0:01:54.8]}
18... Nxf5 {[%clk 0:02:43.4]} 19. Bxf5 {[%clk 0:01:46.4]} 19... exf5 {[%clk
0:02:44.3]} 20. Ng3 {[%clk 0:01:46.6]} 20... h4 {[%clk 0:02:41.6]} 21. Nh5
{[%clk 0:01:45.7]} 21... Rdg8 {[%clk 0:02:36.8]} 22. Nf6 {[%clk 0:01:41.2]}
22... Rg7 {[%clk 0:02:33.4]} 23. Ra2 {[%clk 0:01:33.5]} 23... Be6 {[%clk
0:02:28.6]} 24. Rg1 {[%clk 0:01:33.3]} 24... Rg4 {[%clk 0:02:22.7]} 25. Nxg4
{[%clk 0:01:15.8]} 25... fxg4 {[%clk 0:02:22.4]} 26. f5 {[%clk 0:01:07.5]} 26...
Bxf5 {[%clk 0:02:20.1]} 27. Qf1 {[%clk 0:01:08.1]} 27... Ne7 {[%clk 0:02:15.5]}
28. e6 {[%clk 0:00:55.5]} 28... g3+ {[%clk 0:02:14.8]} 29. Kg2 {[%clk
0:00:55.8]} 29... Qc6 {[%clk 0:02:10]} 30. Qf4 {[%clk 0:00:50.4]} 30... Be4+
{[%clk 0:02:07.7]} 31. Kf1 {[%clk 0:00:46.1]} 31... Qxe6 {[%clk 0:02:06.6]} 32.
Qxh4 {[%clk 0:00:27.6]} 32... Rf8+ {[%clk 0:02:05.1]} 33. Ke2 {[%clk 0:00:16.7]}
33... Bf3+ {[%clk 0:02:03.5]} 34. Kf1 {[%clk 0:00:15.5]} 34... Qe2# {[%clk
0:02:04.3]} 0-1

[Event "*** SCC Grand Prix: Titled Tuesday Blitz"]
[Site "Chess.com"]
[Date "2020.10.13"]
[Round "3"]
[White "m_ezat"]
[Black "queen_iryna"]
[Result "1-0"]
[WhiteElo "2530"]
[BlackElo "2290"]
[TimeControl "180+1"]
[EndTime "10:26:46 PDT"]
[Termination "m_ezat won by checkmate"]

1. d4 {[%clk 0:02:53.4]} 1... d6 {[%clk 0:03:00.1]} 2. c4 {[%clk 0:02:50]} 2...
e5 {[%clk 0:02:59.2]} 3. Nf3 {[%clk 0:02:49]} 3... e4 {[%clk 0:02:59.1]} 4. Ng5
{[%clk 0:02:42.2]} 4... f5 {[%clk 0:02:59.4]} 5. h4 {[%clk 0:02:40.1]} 5... Be7
{[%clk 0:02:56]} 6. Nh3 {[%clk 0:02:37.2]} 6... Nf6 {[%clk 0:02:55.8]} 7. Bg5
{[%clk 0:02:35.5]} 7... O-O {[%clk 0:02:54]} 8. Nc3 {[%clk 0:02:35.4]} 8... c6
{[%clk 0:02:52.7]} 9. e3 {[%clk 0:02:35.8]} 9... Na6 {[%clk 0:02:51]} 10. Nf4
{[%clk 0:02:34.9]} 10... Nc7 {[%clk 0:02:50.2]} 11. Qc2 {[%clk 0:02:34.2]} 11...
Bd7 {[%clk 0:02:40.1]} 12. O-O-O {[%clk 0:02:33.7]} 12... b5 {[%clk 0:02:35.1]}
13. f3 {[%clk 0:02:33.3]} 13... c5 {[%clk 0:02:36]} 14. dxc5 {[%clk 0:02:32]}
14... dxc5 {[%clk 0:02:22.7]} 15. cxb5 {[%clk 0:02:31]} 15... exf3 {[%clk
0:02:14.5]} 16. Bc4+ {[%clk 0:02:22.1]} 16... Kh8 {[%clk 0:02:13.8]} 17. h5
{[%clk 0:02:22.2]} 17... Ng4 {[%clk 0:01:30.5]} 18. Ng6+ {[%clk 0:02:02.6]}
18... hxg6 {[%clk 0:01:31.4]} 19. hxg6+ {[%clk 0:02:02.7]} 19... Nh6 {[%clk
0:01:30.7]} 20. Bxh6 {[%clk 0:02:02.1]} 20... gxh6 {[%clk 0:01:30.3]} 21. Rxh6+
{[%clk 0:02:00.4]} 21... Kg7 {[%clk 0:01:30.5]} 22. Rdh1 {[%clk 0:01:43.7]}
22... Bg5 {[%clk 0:01:27.4]} 23. Rh7+ {[%clk 0:01:35.5]} 23... Kxg6 {[%clk
0:01:27.4]} 24. gxf3 {[%clk 0:01:33.8]} 24... Bxe3+ {[%clk 0:01:10]} 25. Kb1
{[%clk 0:01:33.2]} 25... Ne6 {[%clk 0:00:59.5]} 26. Bxe6 {[%clk 0:01:19.1]}
26... Bxe6 {[%clk 0:00:58.9]} 27. Qg2+ {[%clk 0:01:19]} 27... Kf6 {[%clk
0:00:53.6]} 28. Qg7# {[%clk 0:01:18.3]} 1-0

[Event "*** SCC Grand Prix: Titled Tuesday Blitz"]
[Site "Chess.com"]
[Date "2020.10.13"]
[Round "3"]
[White "NiranjanNavalgund"]
[Black "RobertoJBM"]
[Result "0-1"]
[WhiteElo "2443"]
[BlackElo "2713"]
[TimeControl "180+1"]
[EndTime "10:26:54 PDT"]
[Termination "RobertoJBM won by resignation"]

1. e4 {[%clk 0:03:00.9]} 1... c6 {[%clk 0:02:59.2]} 2. Nc3 {[%clk 0:02:30.7]}
2... d5 {[%clk 0:03:00.1]} 3. Nf3 {[%clk 0:02:27.4]} 3... dxe4 {[%clk
0:03:00.1]} 4. Nxe4 {[%clk 0:02:27.1]} 4... Bg4 {[%clk 0:03:00.6]} 5. Qe2 {[%clk
0:02:27.3]} 5... e6 {[%clk 0:02:59.4]} 6. h3 {[%clk 0:02:25]} 6... Bxf3 {[%clk
0:02:58.7]} 7. Qxf3 {[%clk 0:02:25.3]} 7... Nd7 {[%clk 0:02:59.6]} 8. d4 {[%clk
0:02:25]} 8... Ndf6 {[%clk 0:02:59.8]} 9. Nxf6+ {[%clk 0:02:24.4]} 9... Nxf6
{[%clk 0:03:00.7]} 10. c3 {[%clk 0:02:22.9]} 10... Qd5 {[%clk 0:03:01.2]} 11.
Be2 {[%clk 0:02:21.7]} 11... Bd6 {[%clk 0:03:00.1]} 12. Be3 {[%clk 0:02:20.7]}
12... O-O {[%clk 0:02:57.5]} 13. O-O {[%clk 0:02:20.4]} 13... Rfe8 {[%clk
0:02:56.6]} 14. Rfe1 {[%clk 0:02:18]} 14... Qxf3 {[%clk 0:02:56.4]} 15. Bxf3
{[%clk 0:02:17.9]} 15... Nd5 {[%clk 0:02:57.3]} 16. Bd2 {[%clk 0:02:17.7]} 16...
g6 {[%clk 0:02:52.8]} 17. g3 {[%clk 0:02:16.2]} 17... h5 {[%clk 0:02:52.2]} 18.
h4 {[%clk 0:02:15.3]} 18... Bf8 {[%clk 0:02:51.3]} 19. Kg2 {[%clk 0:02:15.5]}
19... Kh7 {[%clk 0:02:50.4]} 20. Re2 {[%clk 0:02:15.3]} 20... Bh6 {[%clk
0:02:49.3]} 21. Be1 {[%clk 0:02:14.2]} 21... Red8 {[%clk 0:02:48.3]} 22. Be4
{[%clk 0:02:12.6]} 22... Rd7 {[%clk 0:02:47.8]} 23. Bc2 {[%clk 0:02:11.9]} 23...
Rad8 {[%clk 0:02:45.9]} 24. Bb3 {[%clk 0:02:11.8]} 24... Kg7 {[%clk 0:02:45.4]}
25. a4 {[%clk 0:02:06.9]} 25... Kg8 {[%clk 0:02:44.6]} 26. a5 {[%clk 0:02:03.9]}
26... a6 {[%clk 0:02:44.4]} 27. Bc4 {[%clk 0:02:02.7]} 27... Kh7 {[%clk
0:02:36.8]} 28. f3 {[%clk 0:02:00.4]} 28... Ne3+ {[%clk 0:02:24.8]} 29. Rxe3
{[%clk 0:02:00.5]} 29... Bxe3 {[%clk 0:02:25.7]} 30. f4 {[%clk 0:02:00.8]} 30...
c5 {[%clk 0:02:26.3]} 31. dxc5 {[%clk 0:01:53.8]} 31... Bxc5 {[%clk 0:02:25.8]}
32. Kf3 {[%clk 0:01:51.8]} 32... Rd1 {[%clk 0:02:24.8]} 33. Rxd1 {[%clk
0:01:49.9]} 33... Rxd1 {[%clk 0:02:25.7]} 34. Ke2 {[%clk 0:01:50.6]} 34... Rd7
{[%clk 0:02:13.4]} 35. b4 {[%clk 0:01:50.2]} 35... Ba7 {[%clk 0:02:11.5]} 36.
Bd3 {[%clk 0:01:49.4]} 36... Kg7 {[%clk 0:02:10.2]} 37. Be4 {[%clk 0:01:46.2]}
37... f5 {[%clk 0:02:09.1]} 38. Bf3 {[%clk 0:01:34.1]} 38... Kf6 {[%clk
0:02:08.8]} 39. Bd2 {[%clk 0:01:16.6]} 39... e5 {[%clk 0:02:06.7]} 40. fxe5+
{[%clk 0:01:16.7]} 40... Kxe5 {[%clk 0:02:07.6]} 41. Bf4+ {[%clk 0:01:17.6]}
41... Ke6 {[%clk 0:02:07.5]} 42. Bg5 {[%clk 0:01:16.2]} 42... Bb8 {[%clk
0:02:06]} 43. Kf2 {[%clk 0:01:15]} 43... Be5 {[%clk 0:02:04.2]} 44. c4 {[%clk
0:01:14.3]} 44... Bc3 {[%clk 0:02:04.1]} 45. b5 {[%clk 0:01:07.5]} 45... axb5
{[%clk 0:01:56.4]} 46. cxb5 {[%clk 0:01:07.1]} 46... Bxa5 {[%clk 0:01:56.3]} 47.
Ke2 {[%clk 0:01:05.2]} 47... Bc3 {[%clk 0:01:48.4]} 0-1

[Event "*** SCC Grand Prix: Titled Tuesday Blitz"]
[Site "Chess.com"]
[Date "2020.10.13"]
[Round "3"]
[White "Fighter008"]
[Black "GiantThresher"]
[Result "0-1"]
[WhiteElo "2630"]
[BlackElo "2835"]
[TimeControl "180+1"]
[EndTime "10:26:56 PDT"]
[Termination "GiantThresher won by resignation"]

1. e4 {[%clk 0:03:00.9]} 1... e6 {[%clk 0:02:58.6]} 2. d4 {[%clk 0:02:59.1]}
2... d5 {[%clk 0:02:58.7]} 3. Nc3 {[%clk 0:02:59.4]} 3... Nf6 {[%clk 0:02:56.5]}
4. Bg5 {[%clk 0:02:59.1]} 4... Be7 {[%clk 0:02:52.8]} 5. e5 {[%clk 0:02:57.3]}
5... Nfd7 {[%clk 0:02:53.1]} 6. h4 {[%clk 0:02:57.2]} 6... Nc6 {[%clk
0:02:53.3]} 7. Qg4 {[%clk 0:02:55]} 7... f6 {[%clk 0:02:53.1]} 8. exf6 {[%clk
0:02:49.5]} 8... Nxf6 {[%clk 0:02:54]} 9. Qd1 {[%clk 0:02:42.2]} 9... O-O {[%clk
0:02:52.3]} 10. Nf3 {[%clk 0:02:41.3]} 10... h6 {[%clk 0:02:42]} 11. Bd3 {[%clk
0:02:26.8]} 11... Qe8 {[%clk 0:02:32.2]} 12. Be3 {[%clk 0:02:12.4]} 12... Bb4
{[%clk 0:02:28.8]} 13. O-O {[%clk 0:02:04]} 13... Ng4 {[%clk 0:02:05.1]} 14. Nh2
{[%clk 0:01:44.2]} 14... Nxh2 {[%clk 0:01:54.8]} 15. Kxh2 {[%clk 0:01:45.1]}
15... e5 {[%clk 0:01:55.3]} 16. Nxd5 {[%clk 0:01:35.6]} 16... Bd6 {[%clk
0:01:45.5]} 17. g3 {[%clk 0:01:20.7]} 17... Qe6 {[%clk 0:01:25.9]} 18. dxe5
{[%clk 0:01:12.4]} 18... Nxe5 {[%clk 0:01:18.9]} 19. Nf4 {[%clk 0:01:07.1]}
19... Rxf4 {[%clk 0:01:10.9]} 20. Bxf4 {[%clk 0:01:05.5]} 20... Qh3+ {[%clk
0:01:11.5]} 21. Kg1 {[%clk 0:01:05.4]} 21... Ng4 {[%clk 0:01:12.4]} 22. Bc4+
{[%clk 0:01:01.4]} 22... Kh8 {[%clk 0:01:11.2]} 23. Qxg4 {[%clk 0:00:50.2]}
23... Bxg4 {[%clk 0:01:06.2]} 24. Bxd6 {[%clk 0:00:50]} 24... Bf3 {[%clk
0:01:04.9]} 0-1

[Event "*** SCC Grand Prix: Titled Tuesday Blitz"]
[Site "Chess.com"]
[Date "2020.10.13"]
[Round "3"]
[White "Klavdia_Nik"]
[Black "Flopezin"]
[Result "0-1"]
[WhiteElo "2127"]
[BlackElo "2318"]
[TimeControl "180+1"]
[EndTime "10:26:59 PDT"]
[Termination "Flopezin won on time"]

1. Nf3 {[%clk 0:03:00.4]} 1... d5 {[%clk 0:02:59.7]} 2. c4 {[%clk 0:03:00.2]}
2... c6 {[%clk 0:02:57]} 3. b3 {[%clk 0:02:57.8]} 3... Nf6 {[%clk 0:02:54.8]} 4.
Bb2 {[%clk 0:02:57.8]} 4... Bf5 {[%clk 0:02:54.2]} 5. g3 {[%clk 0:02:57.7]} 5...
e6 {[%clk 0:02:52.9]} 6. Bg2 {[%clk 0:02:56.5]} 6... h6 {[%clk 0:02:52.7]} 7. d3
{[%clk 0:02:40.8]} 7... Nbd7 {[%clk 0:02:52.6]} 8. Nbd2 {[%clk 0:02:40.5]} 8...
Bh7 {[%clk 0:02:45.5]} 9. Bc3 {[%clk 0:02:33.5]} 9... a5 {[%clk 0:02:43.2]} 10.
a3 {[%clk 0:02:30.6]} 10... c5 {[%clk 0:02:36.6]} 11. Bb2 {[%clk 0:02:09.9]}
11... Be7 {[%clk 0:02:33.3]} 12. Ra2 {[%clk 0:01:51.2]} 12... a4 {[%clk
0:02:25.9]} 13. bxa4 {[%clk 0:01:46.1]} 13... Qa5 {[%clk 0:02:26.1]} 14. Qa1
{[%clk 0:01:34.9]} 14... O-O {[%clk 0:02:19.1]} 15. O-O {[%clk 0:01:21.8]} 15...
Qxa4 {[%clk 0:02:17.2]} 16. Rc1 {[%clk 0:01:20.3]} 16... d4 {[%clk 0:02:16.4]}
17. Qb1 {[%clk 0:01:09.5]} 17... e5 {[%clk 0:02:05.2]} 18. Ne1 {[%clk
0:01:07.3]} 18... Ra7 {[%clk 0:01:58.8]} 19. Qc2 {[%clk 0:00:52.4]} 19... Qxc2
{[%clk 0:01:58.8]} 20. Nxc2 {[%clk 0:00:43.2]} 20... Ne8 {[%clk 0:01:58.8]} 21.
a4 {[%clk 0:00:29.2]} 21... Nd6 {[%clk 0:01:57.8]} 22. a5 {[%clk 0:00:09.8]}
22... f5 {[%clk 0:01:55.6]} 23. Bd5+ {[%clk 0:00:01.2]} 23... Kh8 {[%clk
0:01:54.8]} 0-1

[Event "*** SCC Grand Prix: Titled Tuesday Blitz"]
[Site "Chess.com"]
[Date "2020.10.13"]
[Round "3"]
[White "Parhamov"]
[Black "cassoulet"]
[Result "1-0"]
[WhiteElo "2957"]
[BlackElo "2713"]
[TimeControl "180+1"]
[EndTime "10:27:02 PDT"]
[Termination "Parhamov won by resignation"]

1. e4 {[%clk 0:03:00.8]} 1... e6 {[%clk 0:03:00.1]} 2. Nc3 {[%clk 0:02:59.1]}
2... d5 {[%clk 0:02:59.4]} 3. d4 {[%clk 0:02:59.7]} 3... Bb4 {[%clk 0:02:58.4]}
4. e5 {[%clk 0:02:59.5]} 4... c5 {[%clk 0:02:58.5]} 5. a3 {[%clk 0:02:59.2]}
5... Bxc3+ {[%clk 0:02:58.9]} 6. bxc3 {[%clk 0:02:59.4]} 6... Ne7 {[%clk
0:02:59.6]} 7. Qg4 {[%clk 0:02:59]} 7... cxd4 {[%clk 0:02:58.1]} 8. Bd3 {[%clk
0:02:55.2]} 8... Qc7 {[%clk 0:00:51.8]} 9. Ne2 {[%clk 0:02:55]} 9... Nbc6 {[%clk
0:00:49.8]} 10. cxd4 {[%clk 0:02:51.1]} 10... Kf8 {[%clk 0:00:47]} 11. O-O
{[%clk 0:02:49.4]} 11... h5 {[%clk 0:00:46.7]} 12. Qf4 {[%clk 0:02:48.5]} 12...
Nf5 {[%clk 0:00:47]} 13. a4 {[%clk 0:02:46.4]} 13... b6 {[%clk 0:00:43]} 14. c4
{[%clk 0:02:45.8]} 14... dxc4 {[%clk 0:00:42.9]} 15. Bxf5 {[%clk 0:02:43]} 15...
exf5 {[%clk 0:00:42.9]} 16. Ba3+ {[%clk 0:02:43.6]} 16... Kg8 {[%clk 0:00:40.6]}
17. Bd6 {[%clk 0:02:43.4]} 17... Qd8 {[%clk 0:00:40.5]} 18. d5 {[%clk
0:02:42.8]} 18... Na5 {[%clk 0:00:38.6]} 19. Nc3 {[%clk 0:02:40.3]} 19... h4
{[%clk 0:00:38.9]} 20. h3 {[%clk 0:02:36.6]} 20... Rh6 {[%clk 0:00:39.2]} 21.
Rad1 {[%clk 0:02:35.4]} 21... Rg6 {[%clk 0:00:37.9]} 22. Bb4 {[%clk 0:02:32.8]}
22... Nb7 {[%clk 0:00:34]} 23. e6 {[%clk 0:02:31.8]} 23... Qg5 {[%clk
0:00:31.4]} 24. Qxg5 {[%clk 0:02:30.2]} 24... Rxg5 {[%clk 0:00:32.3]} 25. Rfe1
{[%clk 0:02:27.8]} 25... Nc5 {[%clk 0:00:29.6]} 26. Bxc5 {[%clk 0:02:23.7]}
26... bxc5 {[%clk 0:00:30.5]} 27. e7 {[%clk 0:02:24.2]} 27... Bd7 {[%clk
0:00:30.8]} 28. d6 {[%clk 0:02:19.3]} 28... Rg6 {[%clk 0:00:28.3]} 29. Nb5
{[%clk 0:02:16.9]} 29... Re6 {[%clk 0:00:22.4]} 30. Nc7 {[%clk 0:02:15.3]} 30...
Rc8 {[%clk 0:00:22.7]} 31. Nxe6 {[%clk 0:02:12.8]} 31... fxe6 {[%clk 0:00:23.6]}
32. Rb1 {[%clk 0:02:11.8]} 32... Kf7 {[%clk 0:00:22.9]} 33. Rb7 {[%clk
0:02:11.4]} 33... Ke8 {[%clk 0:00:23.2]} 34. Rxa7 {[%clk 0:02:07]} 34... Rc6
{[%clk 0:00:23.2]} 35. Ra8+ {[%clk 0:02:05.8]} 35... Kf7 {[%clk 0:00:23.6]} 36.
Rf8+ {[%clk 0:02:01.9]} 36... Kg6 {[%clk 0:00:23.8]} 37. Rxe6+ {[%clk
0:02:02.2]} 1-0

[Event "*** SCC Grand Prix: Titled Tuesday Blitz"]
[Site "Chess.com"]
[Date "2020.10.13"]
[Round "3"]
[White "emiliocordova"]
[Black "mirceaparligras"]
[Result "1/2-1/2"]
[WhiteElo "2826"]
[BlackElo "2637"]
[TimeControl "180+1"]
[EndTime "10:27:02 PDT"]
[Termination "Game drawn by agreement"]

1. Nf3 {[%clk 0:03:00.9]} 1... d5 {[%clk 0:02:59.4]} 2. d4 {[%clk 0:03:00.2]}
2... Nf6 {[%clk 0:02:57.9]} 3. c4 {[%clk 0:02:59.5]} 3... e6 {[%clk 0:02:57.4]}
4. g3 {[%clk 0:02:59.6]} 4... Bb4+ {[%clk 0:02:56.2]} 5. Nbd2 {[%clk 0:02:58.8]}
5... dxc4 {[%clk 0:02:52.5]} 6. a3 {[%clk 0:02:57.7]} 6... Bxd2+ {[%clk
0:02:47.8]} 7. Bxd2 {[%clk 0:02:54.2]} 7... b5 {[%clk 0:02:43.7]} 8. a4 {[%clk
0:02:53.2]} 8... c6 {[%clk 0:02:41.1]} 9. Bg2 {[%clk 0:02:49.1]} 9... Bb7 {[%clk
0:02:36.7]} 10. O-O {[%clk 0:02:39.8]} 10... O-O {[%clk 0:02:35.9]} 11. b3
{[%clk 0:02:33.4]} 11... cxb3 {[%clk 0:02:33.7]} 12. Qxb3 {[%clk 0:02:34.3]}
12... a6 {[%clk 0:02:30.9]} 13. Rfc1 {[%clk 0:02:26.6]} 13... Nbd7 {[%clk
0:02:28]} 14. Ne1 {[%clk 0:02:13.2]} 14... Qb6 {[%clk 0:02:09.5]} 15. e3 {[%clk
0:01:25.1]} 15... c5 {[%clk 0:01:33.5]} 16. Bxb7 {[%clk 0:01:23.6]} 16... Qxb7
{[%clk 0:01:27]} 17. dxc5 {[%clk 0:01:24.5]} 17... Rfc8 {[%clk 0:01:19]} 18.
axb5 {[%clk 0:01:14.3]} 18... Nxc5 {[%clk 0:01:10.7]} 19. Qb4 {[%clk 0:01:13.1]}
19... Nd5 {[%clk 0:01:04.9]} 20. Qb1 {[%clk 0:00:57.4]} 20... axb5 {[%clk
0:00:52.9]} 21. Rxa8 {[%clk 0:00:56.4]} 21... Qxa8 {[%clk 0:00:52.9]} 22. Qxb5
{[%clk 0:00:54.1]} 22... Ne4 {[%clk 0:00:47.5]} 1/2-1/2